[Event "*** Titled Tuesday Blitz"]
[Site "Chess.com"]
[Date "2020.04.28"]
[Round "4"]
[White "Grischuk"]
[Black "TengisChess"]
[Result "1-0"]
[WhiteElo "3107"]
[BlackElo "2557"]
[TimeControl "180+1"]
[EndTime "10:40:47 PDT"]
[Termination "Grischuk won by checkmate"]

1. e4 {[%clk 0:03:00.9]} 1... c6 {[%clk 0:02:59.5]} 2. d4 {[%clk 0:02:59.9]}
2... d5 {[%clk 0:02:59.8]} 3. e5 {[%clk 0:03:00.6]} 3... Bf5 {[%clk 0:02:59.4]}
4. Nf3 {[%clk 0:02:59.5]} 4... e6 {[%clk 0:02:59.4]} 5. Be2 {[%clk 0:03:00.3]}
5... h6 {[%clk 0:02:59.4]} 6. O-O {[%clk 0:03:00.1]} 6... Nd7 {[%clk 0:02:59.8]}
7. a4 {[%clk 0:02:56]} 7... Ne7 {[%clk 0:02:59.8]} 8. a5 {[%clk 0:02:55.7]} 8...
a6 {[%clk 0:03:00.2]} 9. b4 {[%clk 0:02:51]} 9... g5 {[%clk 0:03:00]} 10. c3
{[%clk 0:02:48]} 10... Ng6 {[%clk 0:02:59.4]} 11. Bd3 {[%clk 0:02:42.9]} 11...
g4 {[%clk 0:02:49.1]} 12. Ne1 {[%clk 0:02:38.6]} 12... h5 {[%clk 0:02:47.7]} 13.
Bxf5 {[%clk 0:02:27.2]} 13... exf5 {[%clk 0:02:48.6]} 14. Nd3 {[%clk 0:02:28]}
14... h4 {[%clk 0:02:43.4]} 15. Re1 {[%clk 0:02:22.1]} 15... Bg7 {[%clk
0:02:14.7]} 16. Nd2 {[%clk 0:02:18.7]} 16... Qe7 {[%clk 0:02:06.1]} 17. Nb3
{[%clk 0:02:16.6]} 17... O-O-O {[%clk 0:02:04.5]} 18. f3 {[%clk 0:01:47.9]}
18... h3 {[%clk 0:01:54.6]} 19. g3 {[%clk 0:01:45.2]} 19... gxf3 {[%clk
0:01:45.6]} 20. Qxf3 {[%clk 0:01:46.1]} 20... Rdg8 {[%clk 0:01:33.8]} 21. Qxf5
{[%clk 0:01:42.3]} 21... Nh4 {[%clk 0:01:16.5]} 22. gxh4 {[%clk 0:01:33.4]}
22... Bxe5+ {[%clk 0:01:08.6]} 23. Kf1 {[%clk 0:01:04.9]} 23... f6 {[%clk
0:00:35.4]} 24. Nbc5 {[%clk 0:00:59.6]} 24... Rxh4 {[%clk 0:00:34]} 25. Nxd7
{[%clk 0:00:52.9]} 25... Qg7 {[%clk 0:00:22]} 26. N7xe5+ {[%clk 0:00:49.9]}
26... Kb8 {[%clk 0:00:22.3]} 27. Nd7+ {[%clk 0:00:39.5]} 27... Ka7 {[%clk
0:00:20.8]} 28. Ke2 {[%clk 0:00:38.6]} 28... Qg2+ {[%clk 0:00:15.7]} 29. Nf2
{[%clk 0:00:29.7]} 29... Re4+ {[%clk 0:00:14.1]} 30. Be3 {[%clk 0:00:26.6]}
30... Rge8 {[%clk 0:00:12.1]} 31. Kd2 {[%clk 0:00:25.7]} 31... Qxh2 {[%clk
0:00:07.8]} 32. Re2 {[%clk 0:00:19.7]} 32... R4e6 {[%clk 0:00:05.8]} 33. Nc5
{[%clk 0:00:16.5]} 33... R6e7 {[%clk 0:00:05.6]} 34. Qxh3 {[%clk 0:00:15.6]}
34... Qd6 {[%clk 0:00:04.9]} 35. Qf3 {[%clk 0:00:14.1]} 35... f5 {[%clk
0:00:05]} 36. Nfd3 {[%clk 0:00:14.3]} 36... Qg6 {[%clk 0:00:04.7]} 37. Rae1
{[%clk 0:00:14.4]} 37... Qg8 {[%clk 0:00:04.3]} 38. Bf4 {[%clk 0:00:13.5]} 38...
Ka8 {[%clk 0:00:05.2]} 39. Rxe7 {[%clk 0:00:12.9]} 39... Rxe7 {[%clk 0:00:06.1]}
40. Rxe7 {[%clk 0:00:13.2]} 40... Qg1 {[%clk 0:00:05.3]} 41. Re8+ {[%clk
0:00:11.9]} 41... Ka7 {[%clk 0:00:05.4]} 42. Bb8+ {[%clk 0:00:12.5]} 42... Ka8
{[%clk 0:00:05.7]} 43. Bc7+ {[%clk 0:00:13.1]} 43... Ka7 {[%clk 0:00:06.3]} 44.
Bb6# {[%clk 0:00:13.6]} 1-0

[Event "*** Titled Tuesday Blitz"]
[Site "Chess.com"]
[Date "2020.04.28"]
[Round "4"]
[White "Kosche007"]
[Black "kinga2008"]
[Result "1-0"]
[WhiteElo "2305"]
[BlackElo "2101"]
[TimeControl "180+1"]
[EndTime "10:40:47 PDT"]
[Termination "Kosche007 won by checkmate"]

1. e4 {[%clk 0:03:00.9]} 1... g6 {[%clk 0:03:00.9]} 2. d4 {[%clk 0:03:00.5]}
2... Bg7 {[%clk 0:02:59.1]} 3. Nc3 {[%clk 0:03:01.1]} 3... d6 {[%clk 0:02:57.5]}
4. Bg5 {[%clk 0:03:00.1]} 4... h6 {[%clk 0:02:56]} 5. Bh4 {[%clk 0:02:59.8]}
5... c5 {[%clk 0:02:54.4]} 6. dxc5 {[%clk 0:03:00.7]} 6... Qa5 {[%clk
0:02:50.9]} 7. Qd2 {[%clk 0:02:51.6]} 7... Qxc5 {[%clk 0:02:42.8]} 8. Nd5 {[%clk
0:02:38.2]} 8... Be6 {[%clk 0:02:29]} 9. O-O-O {[%clk 0:02:22.6]} 9... Bxd5
{[%clk 0:02:22.1]} 10. exd5 {[%clk 0:01:56.9]} 10... Nf6 {[%clk 0:02:15]} 11. f3
{[%clk 0:01:51.4]} 11... Nbd7 {[%clk 0:02:04.9]} 12. Bf2 {[%clk 0:01:47.1]}
12... Qc7 {[%clk 0:01:52.6]} 13. Kb1 {[%clk 0:01:40.4]} 13... Rc8 {[%clk
0:01:43.6]} 14. Bb5 {[%clk 0:01:28]} 14... Nxd5 {[%clk 0:01:36.4]} 15. Bxd7+
{[%clk 0:01:27.7]} 15... Kxd7 {[%clk 0:01:33.9]} 16. Ne2 {[%clk 0:01:19.6]}
16... Ke8 {[%clk 0:01:20.8]} 17. Rhe1 {[%clk 0:01:03.7]} 17... Nb6 {[%clk
0:01:09.2]} 18. Bd4 {[%clk 0:00:46.5]} 18... Kf8 {[%clk 0:00:44.1]} 19. Nc3
{[%clk 0:00:36.8]} 19... Nc4 {[%clk 0:00:35]} 20. Bxg7+ {[%clk 0:00:16.5]} 20...
Kxg7 {[%clk 0:00:31.5]} 21. Qd4+ {[%clk 0:00:15]} 21... e5 {[%clk 0:00:21.2]}
22. Qd3 {[%clk 0:00:15.2]} 22... Qb6 {[%clk 0:00:17.7]} 23. b3 {[%clk
0:00:13.7]} 23... Na3+ {[%clk 0:00:16.2]} 24. Kb2 {[%clk 0:00:13.8]} 24... Nc4+
{[%clk 0:00:14.6]} 25. Ka1 {[%clk 0:00:13.8]} 25... Na5 {[%clk 0:00:06.3]} 26.
Na4 {[%clk 0:00:11.5]} 26... Qd4+ {[%clk 0:00:06]} 27. Qxd4 {[%clk 0:00:10.5]}
27... exd4 {[%clk 0:00:06.9]} 28. Rxd4 {[%clk 0:00:10.5]} 28... Rxc2 {[%clk
0:00:07.5]} 29. Rxd6 {[%clk 0:00:10.8]} 29... Nc6 {[%clk 0:00:06.8]} 30. Rd7
{[%clk 0:00:10.7]} 30... Nb4 {[%clk 0:00:04.8]} 31. a3 {[%clk 0:00:10.7]} 31...
Nc6 {[%clk 0:00:02.1]} 32. b4 {[%clk 0:00:09]} 32... Nd8 {[%clk 0:00:01.2]} 33.
Nc5 {[%clk 0:00:07.2]} 33... Ne6 {[%clk 0:00:02.1]} 34. Nxe6+ {[%clk 0:00:07]}
34... Kf6 {[%clk 0:00:02.4]} 35. Nd4 {[%clk 0:00:07.2]} 35... Rxg2 {[%clk
0:00:02.4]} 36. Re4 {[%clk 0:00:07.1]} 36... Kg7 {[%clk 0:00:02.6]} 37. Ree7
{[%clk 0:00:06.8]} 37... Rc8 {[%clk 0:00:02.6]} 38. Rxf7+ {[%clk 0:00:06.3]}
38... Kg8 {[%clk 0:00:03.1]} 39. Rg7+ {[%clk 0:00:06.3]} 39... Kf8 {[%clk
0:00:02.4]} 40. Ne6+ {[%clk 0:00:06]} 40... Ke8 {[%clk 0:00:02.9]} 41. Rge7#
{[%clk 0:00:05.8]} 1-0

[Event "*** Titled Tuesday Blitz"]
[Site "Chess.com"]
[Date "2020.04.28"]
[Round "4"]
[White "doons21"]
[Black "dcann0n88"]
[Result "1-0"]
[WhiteElo "2622"]
[BlackElo "2390"]
[TimeControl "180+1"]
[EndTime "10:40:48 PDT"]
[Termination "doons21 won by resignation"]

1. e4 {[%clk 0:03:00.9]} 1... c5 {[%clk 0:02:59]} 2. c3 {[%clk 0:02:59.6]} 2...
d5 {[%clk 0:02:59]} 3. exd5 {[%clk 0:02:59.3]} 3... Qxd5 {[%clk 0:02:59.9]} 4.
d4 {[%clk 0:02:59.2]} 4... Nf6 {[%clk 0:03:00.5]} 5. Nf3 {[%clk 0:02:59.2]} 5...
e6 {[%clk 0:03:01.2]} 6. Bd3 {[%clk 0:02:57.5]} 6... cxd4 {[%clk 0:03:01.1]} 7.
cxd4 {[%clk 0:02:57.2]} 7... Nc6 {[%clk 0:03:01.2]} 8. O-O {[%clk 0:02:56.5]}
8... Be7 {[%clk 0:03:00.4]} 9. Nc3 {[%clk 0:02:56.1]} 9... Qd6 {[%clk
0:03:00.8]} 10. Qe2 {[%clk 0:02:50.2]} 10... O-O {[%clk 0:02:55.3]} 11. Rd1
{[%clk 0:02:50.3]} 11... b6 {[%clk 0:02:52.4]} 12. Nb5 {[%clk 0:02:29.1]} 12...
Qd8 {[%clk 0:02:46.6]} 13. Bg5 {[%clk 0:02:11.8]} 13... Bb7 {[%clk 0:02:43.7]}
14. Rac1 {[%clk 0:01:53.9]} 14... Rc8 {[%clk 0:02:01.9]} 15. Bb1 {[%clk
0:01:42.3]} 15... Nd5 {[%clk 0:01:46.2]} 16. Qe4 {[%clk 0:01:31.7]} 16... g6
{[%clk 0:01:45.7]} 17. Qh4 {[%clk 0:01:26.1]} 17... a6 {[%clk 0:00:35]} 18. Nc3
{[%clk 0:01:24.9]} 18... Nxc3 {[%clk 0:00:35.2]} 19. Rxc3 {[%clk 0:01:09.3]}
19... Rc7 {[%clk 0:00:35.6]} 20. Qh6 {[%clk 0:00:46.1]} 20... Qd7 {[%clk
0:00:26.7]} 21. Rcd3 {[%clk 0:00:32.5]} 21... f6 {[%clk 0:00:24.7]} 22. Bc1
{[%clk 0:00:23]} 22... Nb4 {[%clk 0:00:20.2]} 23. Re3 {[%clk 0:00:20.5]} 23...
Rf7 {[%clk 0:00:19.5]} 24. a3 {[%clk 0:00:19.7]} 24... Nd5 {[%clk 0:00:19.4]}
25. Ree1 {[%clk 0:00:20.1]} 25... Bf8 {[%clk 0:00:19.1]} 26. Qh4 {[%clk
0:00:19.3]} 26... Ne7 {[%clk 0:00:15.8]} 27. Bf4 {[%clk 0:00:17.1]} 27... Rc8
{[%clk 0:00:15.4]} 28. Qg3 {[%clk 0:00:15.9]} 28... Nf5 {[%clk 0:00:14.6]} 29.
Qh3 {[%clk 0:00:15.1]} 29... Bd5 {[%clk 0:00:14.7]} 30. g4 {[%clk 0:00:15]}
30... Ng7 {[%clk 0:00:14.6]} 31. Qg3 {[%clk 0:00:14.9]} 31... Qc6 {[%clk
0:00:14.8]} 32. Nd2 {[%clk 0:00:14]} 32... Rd7 {[%clk 0:00:14.1]} 33. Be4 {[%clk
0:00:12.9]} 33... Bd6 {[%clk 0:00:14]} 34. Bxd5 {[%clk 0:00:12]} 34... Qxd5
{[%clk 0:00:14.4]} 35. Ne4 {[%clk 0:00:11.7]} 35... Bxf4 {[%clk 0:00:14.4]} 36.
Nxf6+ {[%clk 0:00:10.8]} 36... Kf7 {[%clk 0:00:14.9]} 37. Qxf4 {[%clk
0:00:10.8]} 37... Qd6 {[%clk 0:00:10.6]} 38. Qf3 {[%clk 0:00:08.4]} 38... Qc6
{[%clk 0:00:06.9]} 39. d5 {[%clk 0:00:08.7]} 39... exd5 {[%clk 0:00:03.5]} 40.
Nxd7+ {[%clk 0:00:08.5]} 40... Kg8 {[%clk 0:00:04]} 41. Ne5 {[%clk 0:00:08.9]}
41... Qf6 {[%clk 0:00:03.5]} 42. Qxf6 {[%clk 0:00:08.7]} 1-0

[Event "*** Titled Tuesday Blitz"]
[Site "Chess.com"]
[Date "2020.04.28"]
[Round "4"]
[White "WiktoriaPOL"]
[Black "MilanJeremic"]
[Result "0-1"]
[WhiteElo "2033"]
[BlackElo "2241"]
[TimeControl "180+1"]
[EndTime "10:40:48 PDT"]
[Termination "MilanJeremic won on time"]

1. c4 {[%clk 0:03:00.9]} 1... c5 {[%clk 0:02:59.2]} 2. Nf3 {[%clk 0:03:00.1]}
2... Nc6 {[%clk 0:02:58.8]} 3. Nc3 {[%clk 0:03:00]} 3... Nf6 {[%clk 0:02:58.5]}
4. g3 {[%clk 0:02:56.3]} 4... d6 {[%clk 0:02:58.3]} 5. Bg2 {[%clk 0:02:55.5]}
5... g6 {[%clk 0:02:56.9]} 6. d4 {[%clk 0:02:55.6]} 6... cxd4 {[%clk 0:02:54.4]}
7. Nxd4 {[%clk 0:02:55.3]} 7... Bd7 {[%clk 0:02:54.1]} 8. O-O {[%clk 0:02:54.4]}
8... Bg7 {[%clk 0:02:53.4]} 9. Be3 {[%clk 0:02:51.8]} 9... O-O {[%clk
0:02:52.5]} 10. Qd2 {[%clk 0:02:49]} 10... Rc8 {[%clk 0:02:51.2]} 11. b3 {[%clk
0:02:44.3]} 11... Nxd4 {[%clk 0:02:48.7]} 12. Bxd4 {[%clk 0:02:42.3]} 12... Bc6
{[%clk 0:02:48.2]} 13. Rac1 {[%clk 0:02:28.6]} 13... Bxg2 {[%clk 0:02:43.2]} 14.
Kxg2 {[%clk 0:02:27.9]} 14... a6 {[%clk 0:02:41.6]} 15. Na4 {[%clk 0:02:18.3]}
15... Rc6 {[%clk 0:02:31.4]} 16. h4 {[%clk 0:02:08.7]} 16... Qc8 {[%clk
0:02:27.1]} 17. Nb6 {[%clk 0:02:01.4]} 17... Rxb6 {[%clk 0:02:26.4]} 18. Bxb6
{[%clk 0:01:58.5]} 18... Qc6+ {[%clk 0:02:26.2]} 19. f3 {[%clk 0:01:44.4]} 19...
Qxb6 {[%clk 0:02:25.8]} 20. e4 {[%clk 0:01:43.6]} 20... Qc6 {[%clk 0:02:21.3]}
21. Rfd1 {[%clk 0:01:34.8]} 21... h5 {[%clk 0:02:15.9]} 22. Qe3 {[%clk
0:01:13.2]} 22... Kh7 {[%clk 0:02:12.6]} 23. e5 {[%clk 0:01:12.4]} 23... Ng4
{[%clk 0:01:40.4]} 24. Qe2 {[%clk 0:00:56.5]} 24... Nxe5 {[%clk 0:01:38.9]} 25.
Rd2 {[%clk 0:00:49.1]} 25... Bh6 {[%clk 0:01:36]} 26. Rcd1 {[%clk 0:00:46.6]}
26... Bxd2 {[%clk 0:01:35.1]} 27. Rxd2 {[%clk 0:00:46.3]} 27... b5 {[%clk
0:01:29.6]} 28. cxb5 {[%clk 0:00:44.1]} 28... axb5 {[%clk 0:01:29.2]} 29. Rc2
{[%clk 0:00:40.4]} 29... Qb7 {[%clk 0:01:28]} 30. Kf2 {[%clk 0:00:33.1]} 30...
Rc8 {[%clk 0:01:21.3]} 31. Rxc8 {[%clk 0:00:31.1]} 31... Qxc8 {[%clk 0:01:21.2]}
32. Qxb5 {[%clk 0:00:28.2]} 32... Qh3 {[%clk 0:01:09.2]} 33. Qe2 {[%clk
0:00:25.5]} 33... Qh2+ {[%clk 0:01:06.7]} 34. Ke3 {[%clk 0:00:24.3]} 34... Qxg3
{[%clk 0:01:05.9]} 35. b4 {[%clk 0:00:21.9]} 35... Qxh4 {[%clk 0:01:03.3]} 36.
b5 {[%clk 0:00:20.9]} 36... Qa4 {[%clk 0:00:56.5]} 37. b6 {[%clk 0:00:19.9]}
37... Nc4+ {[%clk 0:00:49.5]} 38. Kf2 {[%clk 0:00:18.3]} 38... Nxb6 {[%clk
0:00:48.1]} 39. Qxe7 {[%clk 0:00:17.1]} 39... Qd4+ {[%clk 0:00:47.6]} 40. Kg3
{[%clk 0:00:15.5]} 40... Kg7 {[%clk 0:00:47.1]} 41. f4 {[%clk 0:00:13.1]} 41...
Nc4 {[%clk 0:00:45.8]} 42. a4 {[%clk 0:00:09.2]} 42... Ne3 {[%clk 0:00:45.4]}
43. Qe8 {[%clk 0:00:05.9]} 43... Nf5+ {[%clk 0:00:44.6]} 44. Kf3 {[%clk
0:00:05.5]} 44... Qd3+ {[%clk 0:00:42.4]} 45. Kf2 {[%clk 0:00:05.1]} 45... h4
{[%clk 0:00:41.7]} 46. a5 {[%clk 0:00:04.5]} 46... Qg3+ {[%clk 0:00:40]} 47. Ke2
{[%clk 0:00:03.3]} 47... Qxf4 {[%clk 0:00:38.6]} 48. a6 {[%clk 0:00:02.6]} 48...
Qc4+ {[%clk 0:00:37.4]} 49. Kf2 {[%clk 0:00:02.1]} 49... Qxa6 {[%clk 0:00:36.6]}
50. Qe4 {[%clk 0:00:02.3]} 50... Qa2+ {[%clk 0:00:33.9]} 0-1

[Event "*** Titled Tuesday Blitz"]
[Site "Chess.com"]
[Date "2020.04.28"]
[Round "4"]
[White "tigra"]
[Black "talman67"]
[Result "1-0"]
[WhiteElo "2779"]
[BlackElo "2567"]
[TimeControl "180+1"]
[EndTime "10:40:49 PDT"]
[Termination "tigra won on time"]

1. e4 {[%clk 0:03:00.9]} 1... e5 {[%clk 0:02:59.6]} 2. Nf3 {[%clk 0:03:00.7]}
2... Nc6 {[%clk 0:03:00.1]} 3. Bc4 {[%clk 0:03:00.2]} 3... Bc5 {[%clk
0:02:59.8]} 4. d3 {[%clk 0:02:59.6]} 4... Nf6 {[%clk 0:02:52.5]} 5. c3 {[%clk
0:02:59.4]} 5... d6 {[%clk 0:02:51.3]} 6. Nbd2 {[%clk 0:02:54.5]} 6... a5 {[%clk
0:02:50.8]} 7. O-O {[%clk 0:02:49.1]} 7... O-O {[%clk 0:02:44]} 8. h3 {[%clk
0:02:48.1]} 8... Be6 {[%clk 0:02:29.5]} 9. Bb5 {[%clk 0:02:47.9]} 9... Qb8
{[%clk 0:02:24.4]} 10. a4 {[%clk 0:02:44.5]} 10... Qa7 {[%clk 0:02:23.4]} 11. b3
{[%clk 0:02:10.6]} 11... h6 {[%clk 0:02:09.8]} 12. Ra2 {[%clk 0:01:52.5]} 12...
Bb6 {[%clk 0:01:53.2]} 13. Nc4 {[%clk 0:01:45.7]} 13... Bxc4 {[%clk 0:01:41.1]}
14. Bxc4 {[%clk 0:01:46.6]} 14... Ne7 {[%clk 0:01:41.5]} 15. Nh4 {[%clk
0:01:13.4]} 15... c6 {[%clk 0:01:20.3]} 16. Qf3 {[%clk 0:01:09.2]} 16... d5
{[%clk 0:01:20.1]} 17. exd5 {[%clk 0:00:57.5]} 17... cxd5 {[%clk 0:01:21]} 18.
Bb5 {[%clk 0:00:57.3]} 18... e4 {[%clk 0:01:18.4]} 19. dxe4 {[%clk 0:00:54]}
19... Nxe4 {[%clk 0:01:18.5]} 20. c4 {[%clk 0:00:39.1]} 20... Ng6 {[%clk
0:01:11.5]} 21. cxd5 {[%clk 0:00:28.6]} 21... Nxf2 {[%clk 0:01:07.7]} 22. Nf5
{[%clk 0:00:27.6]} 22... Nxh3+ {[%clk 0:00:17.3]} 23. Kh1 {[%clk 0:00:26.9]}
23... Ng5 {[%clk 0:00:16.2]} 24. Bxg5 {[%clk 0:00:14.5]} 24... hxg5 {[%clk
0:00:17.1]} 25. d6 {[%clk 0:00:14.7]} 25... Bc5 {[%clk 0:00:10.5]} 26. Re2
{[%clk 0:00:13.3]} 26... Rad8 {[%clk 0:00:09.4]} 27. Ne7+ {[%clk 0:00:13.2]}
27... Nxe7 {[%clk 0:00:05.7]} 28. dxe7 {[%clk 0:00:14.1]} 28... Bxe7 {[%clk
0:00:06.5]} 29. Rxe7 {[%clk 0:00:14.6]} 29... Rd4 {[%clk 0:00:07.4]} 30. Re4
{[%clk 0:00:12.8]} 30... Rxe4 {[%clk 0:00:06]} 31. Qxe4 {[%clk 0:00:13.7]} 31...
Rd8 {[%clk 0:00:06.9]} 32. Bc4 {[%clk 0:00:13.6]} 32... Rd6 {[%clk 0:00:02.3]}
33. g3 {[%clk 0:00:08.8]} 33... Rh6+ {[%clk 0:00:01.7]} 34. Kg2 {[%clk
0:00:08.6]} 34... Kh8 {[%clk 0:00:01.5]} 35. Qe8+ {[%clk 0:00:07.6]} 35... Kh7
{[%clk 0:00:01.4]} 36. Bxf7 {[%clk 0:00:07.9]} 1-0

[Event "*** Titled Tuesday Blitz"]
[Site "Chess.com"]
[Date "2020.04.28"]
[Round "4"]
[White "RaphaeI"]
[Black "Irishchessman16"]
[Result "0-1"]
[WhiteElo "2627"]
[BlackElo "2433"]
[TimeControl "180+1"]
[EndTime "10:40:49 PDT"]
[Termination "Irishchessman16 won on time"]

1. Nf3 {[%clk 0:03:00.9]} 1... c5 {[%clk 0:02:57.2]} 2. c4 {[%clk 0:03:00.9]}
2... Nc6 {[%clk 0:02:57.1]} 3. Nc3 {[%clk 0:03:00.9]} 3... e5 {[%clk 0:02:56.6]}
4. e3 {[%clk 0:02:52.7]} 4... Nf6 {[%clk 0:02:55.8]} 5. d4 {[%clk 0:02:52.1]}
5... e4 {[%clk 0:02:56.2]} 6. d5 {[%clk 0:02:46.7]} 6... exf3 {[%clk 0:02:51.1]}
7. dxc6 {[%clk 0:02:42.9]} 7... bxc6 {[%clk 0:02:50]} 8. e4 {[%clk 0:02:32.2]}
8... d6 {[%clk 0:02:33.8]} 9. Qxf3 {[%clk 0:02:18.4]} 9... Bg4 {[%clk 0:02:32]}
10. Qg3 {[%clk 0:02:16.9]} 10... h5 {[%clk 0:02:25.3]} 11. f3 {[%clk 0:01:57.9]}
11... h4 {[%clk 0:02:19.5]} 12. Qf2 {[%clk 0:01:57.9]} 12... Be6 {[%clk
0:02:19]} 13. Bg5 {[%clk 0:01:52.3]} 13... Be7 {[%clk 0:02:02.8]} 14. Be3 {[%clk
0:01:15.2]} 14... Nd7 {[%clk 0:01:39]} 15. Rd1 {[%clk 0:01:09.2]} 15... Qa5
{[%clk 0:01:28.4]} 16. h3 {[%clk 0:01:00]} 16... Ne5 {[%clk 0:01:25.1]} 17. Bd2
{[%clk 0:00:44.4]} 17... Bxc4 {[%clk 0:00:50.7]} 18. Nd5 {[%clk 0:00:39.6]}
18... Qd8 {[%clk 0:00:36.7]} 19. Nxe7 {[%clk 0:00:39.5]} 19... Bxf1 {[%clk
0:00:31]} 20. Qxf1 {[%clk 0:00:21.8]} 20... Qxe7 {[%clk 0:00:30.7]} 21. Bc3
{[%clk 0:00:20.6]} 21... O-O {[%clk 0:00:25.4]} 22. Kf2 {[%clk 0:00:18.5]} 22...
f5 {[%clk 0:00:25.2]} 23. exf5 {[%clk 0:00:17.4]} 23... Rxf5 {[%clk 0:00:24.8]}
24. Qe2 {[%clk 0:00:16.5]} 24... Qf7 {[%clk 0:00:19.2]} 25. Rhe1 {[%clk
0:00:15.4]} 25... Nc4 {[%clk 0:00:13.6]} 26. b3 {[%clk 0:00:08.7]} 26... Nb6
{[%clk 0:00:13.1]} 27. Rxd6 {[%clk 0:00:07.9]} 27... Nd5 {[%clk 0:00:13]} 28.
Ba1 {[%clk 0:00:06.2]} 28... Rf8 {[%clk 0:00:12.4]} 29. Rxc6 {[%clk 0:00:04.8]}
29... Qd7 {[%clk 0:00:11.1]} 30. Qe6+ {[%clk 0:00:04.7]} 30... Qxe6 {[%clk
0:00:10.7]} 31. Rcxe6 {[%clk 0:00:05.6]} 31... Nb4 {[%clk 0:00:10.6]} 32. Re7
{[%clk 0:00:04.9]} 32... Rg5 {[%clk 0:00:10.9]} 33. R1e3 {[%clk 0:00:04.4]}
33... Nc2 {[%clk 0:00:11]} 34. Bc3 {[%clk 0:00:03.3]} 34... Nxe3 {[%clk
0:00:10.9]} 35. Rxe3 {[%clk 0:00:03.6]} 35... c4 {[%clk 0:00:10.8]} 36. bxc4
{[%clk 0:00:02.9]} 36... Rc8 {[%clk 0:00:11]} 37. Re4 {[%clk 0:00:02.9]} 37...
Rgc5 {[%clk 0:00:10.9]} 38. Rg4 {[%clk 0:00:03.4]} 38... R8c7 {[%clk 0:00:10.6]}
39. Rxh4 {[%clk 0:00:02.7]} 39... Rxc4 {[%clk 0:00:11]} 40. Bd4 {[%clk
0:00:02.5]} 40... Ra4 {[%clk 0:00:09.7]} 41. Kg3 {[%clk 0:00:02.2]} 41... Rcc4
{[%clk 0:00:09.5]} 0-1

[Event "*** Titled Tuesday Blitz"]
[Site "Chess.com"]
[Date "2020.04.28"]
[Round "4"]
[White "RitvarsReimanis"]
[Black "Khamrakulov_Djurabek"]
[Result "0-1"]
[WhiteElo "2597"]
[BlackElo "2822"]
[TimeControl "180+1"]
[EndTime "10:40:50 PDT"]
[Termination "Khamrakulov_Djurabek won by checkmate"]

1. d4 {[%clk 0:02:49.9]} 1... Nf6 {[%clk 0:02:59.7]} 2. c4 {[%clk 0:02:50.3]}
2... e6 {[%clk 0:02:59.8]} 3. Nf3 {[%clk 0:02:50.1]} 3... c5 {[%clk 0:02:59.9]}
4. d5 {[%clk 0:02:50.3]} 4... b5 {[%clk 0:02:59.9]} 5. cxb5 {[%clk 0:02:33.9]}
5... Nxd5 {[%clk 0:02:51.3]} 6. e4 {[%clk 0:02:33.7]} 6... Nf6 {[%clk
0:02:44.9]} 7. Nc3 {[%clk 0:02:33.4]} 7... Bb7 {[%clk 0:02:44.3]} 8. Bd3 {[%clk
0:02:18.6]} 8... a6 {[%clk 0:02:43.6]} 9. bxa6 {[%clk 0:02:15.1]} 9... Nxa6
{[%clk 0:02:42.4]} 10. Bg5 {[%clk 0:02:12]} 10... Be7 {[%clk 0:02:37.5]} 11. O-O
{[%clk 0:02:03.9]} 11... O-O {[%clk 0:02:35.1]} 12. Rc1 {[%clk 0:02:04.3]} 12...
h6 {[%clk 0:02:28.5]} 13. Bxf6 {[%clk 0:02:00.3]} 13... Bxf6 {[%clk 0:02:28.4]}
14. e5 {[%clk 0:02:00.3]} 14... Bg5 {[%clk 0:02:12.5]} 15. Rb1 {[%clk
0:01:40.3]} 15... Nb4 {[%clk 0:02:12]} 16. Be4 {[%clk 0:01:38.9]} 16... Nc6
{[%clk 0:01:45.1]} 17. Nxg5 {[%clk 0:01:19.2]} 17... hxg5 {[%clk 0:00:33.6]} 18.
Qh5 {[%clk 0:01:17.8]} 18... g6 {[%clk 0:00:33.9]} 19. Bxg6 {[%clk 0:01:17.9]}
19... fxg6 {[%clk 0:00:34]} 20. Qxg6+ {[%clk 0:01:18.8]} 20... Kh8 {[%clk
0:00:34.3]} 21. Rbe1 {[%clk 0:00:32.5]} 21... Rf4 {[%clk 0:00:33.1]} 22. g3
{[%clk 0:00:23.7]} 22... Rf5 {[%clk 0:00:26.6]} 23. Qh6+ {[%clk 0:00:19.9]}
23... Kg8 {[%clk 0:00:25.5]} 24. Qg6+ {[%clk 0:00:20.3]} 24... Kh8 {[%clk
0:00:22.2]} 25. Qh6+ {[%clk 0:00:20.6]} 25... Kg8 {[%clk 0:00:22.3]} 26. Qg6+
{[%clk 0:00:21.1]} 26... Kf8 {[%clk 0:00:22.1]} 27. Qh6+ {[%clk 0:00:19.1]}
27... Kf7 {[%clk 0:00:13.4]} 28. Ne4 {[%clk 0:00:14.8]} 28... Qh8 {[%clk
0:00:11.2]} 29. Nd6+ {[%clk 0:00:13.8]} 29... Ke7 {[%clk 0:00:11.4]} 30. Nxf5+
{[%clk 0:00:08.9]} 30... exf5 {[%clk 0:00:10.2]} 31. Qd6+ {[%clk 0:00:09.4]}
31... Kd8 {[%clk 0:00:07.6]} 32. e6 {[%clk 0:00:09.4]} 32... Qg7 {[%clk
0:00:07.3]} 33. exd7 {[%clk 0:00:06.1]} 33... Qxd7 {[%clk 0:00:06.3]} 34. Qf6+
{[%clk 0:00:03.9]} 34... Kc7 {[%clk 0:00:06.1]} 35. Rd1 {[%clk 0:00:04]} 35...
Nd4 {[%clk 0:00:05.7]} 36. Qe5+ {[%clk 0:00:04.4]} 36... Qd6 {[%clk 0:00:05.4]}
37. Qg7+ {[%clk 0:00:03.4]} 37... Kb6 {[%clk 0:00:05.3]} 38. f3 {[%clk
0:00:02.6]} 38... Nxf3+ {[%clk 0:00:04.4]} 39. Kf2 {[%clk 0:00:03.5]} 39... Nd4
{[%clk 0:00:04.6]} 40. Qxg5 {[%clk 0:00:03.1]} 40... Rxa2 {[%clk 0:00:04.5]} 41.
Rd2 {[%clk 0:00:03.2]} 41... Qc6 {[%clk 0:00:03.6]} 42. Qf4 {[%clk 0:00:04.1]}
42... Qg2+ {[%clk 0:00:03.5]} 43. Ke1 {[%clk 0:00:04.8]} 43... Ra1+ {[%clk
0:00:03]} 44. Rd1 {[%clk 0:00:05.4]} 44... Qe2# {[%clk 0:00:03.5]} 0-1